lending/lending_fUSD_20260317
["ID","MTS","AMOUNT","RATE_DAILY","PERIOD"]
[408498346,1773762636414,-300.0,0.00017899,2]
[408498347,1773762636423,-1000.0,0.000179,2]
[408498348,1773762636433,-65037.33376242,0.000179,2]
[408498349,1773762636792,-56764.88493624,0.000179,2]
[408498350,1773762636804,-91606.09074535,0.000179,2]
[408498351,1773762636815,-91733.82769944,0.000179,2]
[408498354,1773762638874,-500.0,0.00014409,2]
[408498355,1773762638884,-500.0,0.00014409,2]
[408498356,1773762638893,-500.0,0.00014409,2]
[408498357,1773762638903,-500.0,0.00014409,2]
[408498358,1773762638913,-500.0,0.00014409,2]
[408498359,1773762638922,-500.0,0.00014409,2]
[408498360,1773762638941,-500.0,0.00014409,2]
[408498361,1773762638952,-131.98232115,0.00014409,2]
[408498362,1773762638965,-431.70866943,0.00014409,2]
[408498363,1773762638974,-500.0,0.00014409,2]
[408498364,1773762638984,-500.0,0.00014409,2]
[408498365,1773762638993,-500.0,0.00014409,2]
[408498366,1773762639003,-500.0,0.00014409,2]
[408498367,1773762639012,-500.0,0.00014409,2]
[408498368,1773762639022,-500.0,0.00014409,2]
[408498369,1773762639032,-500.0,0.00014409,2]
[408498370,1773762639042,-65.29374313,0.00014409,2]
[408498371,1773762639054,-434.70625687,0.00014409,2]
[408498372,1773762639063,-500.0,0.00014409,2]
[408498373,1773762639074,-480.46964362,0.00014409,2]
[408498375,1773762639086,-19.53035638,0.00014409,2]
[408498377,1773762639096,-500.0,0.00014409,2]
[408498378,1773762639105,-500.0,0.00014409,2]
[408498379,1773762639116,-500.0,0.00014409,2]
[408498380,1773762639129,-500.0,0.00014409,2]
[408498382,1773762639140,-500.0,0.00014409,2]
[408498383,1773762639150,-500.0,0.00014409,2]
[408498384,1773762639162,-500.0,0.00014409,2]
[408498385,1773762639171,-500.0,0.00014409,2]
[408498386,1773762639180,-500.0,0.00014409,2]
[408498387,1773762639190,-500.0,0.00014409,2]
[408498388,1773762639200,-435.12522383,0.00014409,2]
[408498389,1773762639212,-64.87477617,0.00014409,2]
[408498390,1773762639222,-782.14,0.00016919,2]
[408498391,1773762639232,-2332.26045473,0.000179,2]
[408498392,1773762639244,-5573.42635452,0.000179,2]
[408498393,1773762639264,-1110.44819336,0.000179,2]
[408498396,1773762640210,-314.94116439,0.00015167,2]
[408498397,1773762640222,-5689.05883561,0.00015167,2]
[408498398,1773762640232,-1185841.72785394,0.000179,2]
[408498399,1773762640242,-934.3718,0.000179,2]
[408498400,1773762640252,-10000.0,0.000179,2]
[408498401,1773762640261,-14842.64456397,0.000179,2]
[408498402,1773762640271,-23458.40860964,0.000179,2]
[408498403,1773762640284,-2000.0,0.000179,6]
[408498404,1773762640294,-151.0,0.000179,2]
[408498405,1773762640303,-5000.0,0.000179,2]
[408498406,1773762640313,-5000.0,0.000179,2]
[408498407,1773762640322,-4243.68662049,0.000179,2]
[408498408,1773762640331,-5000.0,0.000179,2]
[408498409,1773762640342,-5000.0,0.000179,2]
[408498410,1773762640352,-5000.0,0.000179,2]
[408498411,1773762640361,-5000.0,0.000179,2]
[408498412,1773762640370,-151.0,0.000179,2]
[408498413,1773762640379,-151.0,0.000179,2]
[408498414,1773762640389,-1335.67368591,0.00017913,2]
[408498415,1773762640398,-400.0,0.0001797,2]
[408498416,1773762640408,-400.0,0.0001797,2]
[408498417,1773762640417,-400.0,0.0001797,2]
[408498418,1773762640427,-400.0,0.0001797,2]
[408498419,1773762640436,-400.0,0.0001797,2]
[408498420,1773762640446,-451.15996436,0.0001797,2]
[408498421,1773762640455,-400.0,0.0001797,2]
[408498422,1773762640464,-4610.0,0.00017973,2]
[408498423,1773762640474,-500.0,0.00017974,2]
[408498424,1773762640487,-1175.0,0.00017977,2]
[408498425,1773762640497,-666.0,0.00017986,2]
[408498426,1773762640506,-300.0,0.00017986,2]
[408498427,1773762640515,-300.0,0.00017986,2]
[408498428,1773762640525,-300.0,0.00017986,2]
[408498429,1773762640535,-300.0,0.00017986,2]
[408498431,1773762640544,-388304.7156227,0.00017987,2]
[408498433,1773762640554,-9413.0577401,0.00017987,2]
[408498435,1773762640564,-18638.2038568,0.00017987,2]
[408498436,1773762640573,-39391.4777693,0.00017987,2]
[408498437,1773762640583,-3910.9419065,0.00017987,2]
[408498438,1773762640592,-242.162736,0.00017987,2]
[408498439,1773762640602,-151.0,0.00017987,2]
[408498440,1773762640611,-151.0,0.00017987,2]
[408498441,1773762640621,-151.0,0.00017987,2]
[408498442,1773762640632,-220.781997,0.00017987,2]
[408498443,1773762640643,-151.0,0.00017987,2]
[408498444,1773762640652,-151.0,0.00017987,2]
[408498445,1773762640662,-151.0,0.00017987,2]
[408498446,1773762640674,-35604.9073603,0.00017987,2]
[408498447,1773762640684,-3099.5358064,0.00017987,2]
[408498448,1773762640693,-641.41331539,0.0001799,2]
[408498449,1773762640703,-641.41331539,0.0001799,2]
[408498450,1773762640712,-151.0,0.00017997,2]
[408498452,1773762640721,-300.0,0.00017998,2]
[408498453,1773762640867,-500.0,0.00017999,2]
[408498454,1773762640880,-500.0,0.00017999,2]
[408498455,1773762640889,-500.0,0.00017999,2]
[408498456,1773762640898,-500.0,0.00017999,2]
[408498457,1773762640907,-500.0,0.00017999,2]
[408498458,1773762640917,-500.0,0.00017999,2]
[408498459,1773762640927,-500.0,0.00017999,2]
[408498460,1773762640936,-244.67911052,0.00017999,2]
[408498461,1773762640945,-987.75961641,0.00017999,5]
[408498462,1773762640954,-150.0,0.00017999,2]
[408498463,1773762640964,-155.0,0.00017999,2]
[408498464,1773762640973,-500.0,0.00017999,2]
[408498465,1773762640982,-500.0,0.00017999,2]
[408498466,1773762640994,-500.0,0.00017999,2]
[408498467,1773762641014,-355.55659377,0.00017999,2]
[408498468,1773762641026,-644.96,0.00017999,2]
[408498469,1773762641038,-644.96,0.00017999,2]
[408498470,1773762641047,-644.96,0.00017999,2]
[408498471,1773762641056,-644.96,0.00017999,2]
[408498472,1773762641066,-644.96,0.00017999,2]
[408498473,1773762641075,-644.96,0.00017999,2]
[408498474,1773762641084,-644.96,0.00017999,2]
[408498475,1773762641093,-644.96,0.00017999,2]
[408498476,1773762641102,-644.96,0.00017999,2]
[408498477,1773762641111,-644.96,0.00017999,2]
[408498478,1773762641122,-644.96,0.00017999,2]
[408498479,1773762641132,-644.96,0.00017999,2]
[408498480,1773762641141,-645.09,0.00017999,2]
[408498481,1773762641150,-700.86,0.00017999,2]
[408498482,1773762641160,-700.86,0.00017999,2]
[408498483,1773762641169,-700.86,0.00017999,2]
[408498484,1773762641178,-700.86,0.00017999,2]
[408498485,1773762641187,-700.86,0.00017999,2]
[408498486,1773762641196,-700.86,0.00017999,2]
[408498487,1773762641205,-700.86,0.00017999,2]
[408498488,1773762641214,-700.86,0.00017999,2]
[408498489,1773762641223,-700.86,0.00017999,2]
[408498490,1773762641232,-700.86,0.00017999,2]
[408498491,1773762641241,-700.86,0.00017999,2]
[408498492,1773762641250,-701.05555932,0.00017999,2]
[408498493,1773762641259,-726.4646336,0.00017999,2]
[408498494,1773762641268,-500.0,0.00017999,2]
[408498495,1773762641279,-500.0,0.00017999,2]
[408498496,1773762641288,-500.0,0.00017999,2]
[408498497,1773762641297,-213.57836902,0.00017999,2]
[408498498,1773762641307,-916.06,0.00017999,2]
[408498499,1773762641316,-916.06,0.00017999,2]
[408498500,1773762641325,-916.06,0.00017999,2]
[408498501,1773762641334,-916.06,0.00017999,2]
[408498502,1773762641343,-916.06,0.00017999,2]
[408498503,1773762641352,-916.06,0.00017999,2]
[408498504,1773762641361,-916.06,0.00017999,2]
[408498505,1773762641370,-916.06,0.00017999,2]
[408498506,1773762641380,-916.06,0.00017999,2]
[408498507,1773762641389,-916.06,0.00017999,2]
[408498508,1773762641399,-916.06,0.00017999,2]
[408498509,1773762641407,-916.22905965,0.00017999,2]
[408498510,1773762641416,-300.0,0.00017999,2]
[408498511,1773762641426,-300.0,0.00017999,2]
[408498512,1773762641445,-183.363805,0.00017999,2]
[408498513,1773762641454,-183.363805,0.00017999,2]
[408498514,1773762641464,-183.363805,0.00017999,2]
[408498515,1773762641474,-183.363805,0.00017999,2]
[408498516,1773762641491,-2264177.13324379,0.00018,2]
[408498517,1773762641517,-275936.30354322,0.00018,2]
[408498518,1773762641536,-399636.22436052,0.00018,2]
[408498519,1773762641563,-944.15733495,0.00018,2]
[408498520,1773762641618,-255480.80288778,0.00018,2]
[408498521,1773762641638,-362439.92343245,0.00018,2]
[408498522,1773762641659,-150.0,0.00018,2]
[408498523,1773762641679,-3000.98565964,0.00018,2]
[408498524,1773762641697,-150.0,0.00018,2]
[408498525,1773762641719,-7783.51334903,0.00018,2]
[408498526,1773762641737,-150.0,0.00018,2]
[408498527,1773762641751,-475.57101972,0.00018,2]
[408498528,1773762641773,-151.0,0.00018,2]
[408498529,1773762641787,-2000.0,0.00018,2]
[408498530,1773762641807,-200.0,0.00018,2]
[408498531,1773762641820,-151.0,0.00018,2]
[408498532,1773762641845,-151.0,0.00018,2]
[408498533,1773762641864,-151.0,0.00018,2]
[408498534,1773762641883,-200.0,0.00018,2]
[408498535,1773762641899,-1519.0,0.00018,2]
[408498536,1773762641916,-1117.24702955,0.00018,2]
[408498537,1773762641933,-2022.0,0.00018,2]
[408498538,1773762641950,-183.363805,0.00018,2]
[408498539,1773762641966,-183.363805,0.00018,2]
[408498540,1773762641983,-183.363805,0.00018,2]
[408498541,1773762641999,-183.363805,0.00018,2]
[408498542,1773762642014,-183.363805,0.00018,2]
[408498543,1773762642029,-183.363805,0.00018,2]
[408498544,1773762642044,-183.363805,0.00018,2]
[408498545,1773762642060,-183.363805,0.00018,2]
[408498546,1773762642074,-151.0,0.00018,2]
[408498547,1773762642089,-151.0,0.00018,2]
[408498548,1773762642103,-151.0,0.00018,2]
[408498549,1773762642123,-151.0,0.00018,2]
[408498550,1773762642141,-151.0,0.00018,2]
[408498551,1773762642157,-151.0,0.00018,2]
[408498552,1773762642173,-151.0,0.00018,2]
[408498553,1773762642190,-151.0,0.00018,2]
[408498554,1773762642205,-151.0,0.00018,2]
[408498555,1773762642220,-151.0,0.00018,2]
[408498556,1773762642234,-151.0,0.00018,2]
[408498557,1773762642249,-151.0,0.00018,2]
[408498558,1773762642263,-161.5334,0.00018,2]
[408498559,1773762642278,-161.5334,0.00018,2]
[408498560,1773762642293,-161.5334,0.00018,2]
[408498561,1773762642308,-200.679623,0.00018,2]
[408498562,1773762642323,-150.0,0.00018,2]
[408498563,1773762642338,-150.0,0.00018,2]
[408498564,1773762642353,-150.0,0.00018,2]
[408498565,1773762642366,-150.0,0.00018,2]
[408498566,1773762642380,-198.26654185,0.00018,2]
[408498567,1773762642396,-1175.0,0.0001801,2]
[408498568,1773762642413,-702.0,0.00018015,2]
[408498569,1773762642426,-317.9,0.00018019,2]
[408498570,1773762642435,-1175.0,0.00018039,2]
[408498571,1773762642444,-1175.0,0.00018058,2]
[408498572,1773762642453,-1175.0,0.00018059,2]
[408498573,1773762642466,-1789.0461474,0.000181,2]
[408498574,1773762642476,-500.0,0.00018108,2]
[408498575,1773762642486,-736.72077786,0.0001815,2]
[408498576,1773762642495,-1344.0,0.00018167,2]
[408498577,1773762642505,-3511.0,0.00018167,2]
[408498578,1773762642709,-1044.0,0.00018167,2]
[408498579,1773762642735,-620.0,0.00018167,2]
[408498580,1773762642748,-1260.0,0.00018167,2]
[408498581,1773762642757,-3756.0,0.00018167,2]
[408498582,1773762642766,-414.0,0.00018167,2]
[408498583,1773762642776,-666.0,0.00018177,5]
[408498584,1773762642789,-200.0,0.0001818,2]
[408498585,1773762642798,-2000.0,0.000182,2]
[408498586,1773762642808,-336.84,0.00018209,2]
[408498587,1773762642817,-4098.4393494,0.0001821,2]
[408498588,1773762642826,-500.0,0.00018214,2]
[408498589,1773762642835,-600.0,0.00018236,2]
[408498590,1773762642844,-197.55,0.00018267,2]
[408498591,1773762642854,-702.0,0.00018276,2]
[408498592,1773762642863,-1175.0,0.00018306,2]
[408498593,1773762642872,-150.0,0.00018329,7]
[408498594,1773762642881,-150.0,0.00018329,7]
[408498595,1773762642891,-150.0,0.00018329,7]
[408498596,1773762642900,-150.0,0.00018329,7]
[408498597,1773762642909,-151.0,0.00018329,7]
[408498598,1773762642918,-1000.0,0.00018355,2]
[408498599,1773762642927,-396.0194569,0.00018355,2]
[408498600,1773762642937,-300.0,0.00018355,2]
[408498601,1773762642946,-183.363805,0.00018356,2]
[408498602,1773762642956,-183.363805,0.00018356,2]
[408498603,1773762642965,-183.363805,0.00018356,2]
[408498604,1773762642974,-183.363805,0.00018356,2]
[408498605,1773762642984,-151.0,0.00018356,2]
[408498606,1773762642993,-151.0,0.00018356,2]
[408498607,1773762643002,-151.0,0.00018356,2]
[408498608,1773762643012,-151.0,0.00018356,2]
[408498609,1773762643021,-151.0,0.00018356,2]
[408498610,1773762643030,-89016.9,0.00018356,2]
[408498611,1773762643040,-200.0,0.00018362,2]
[408498612,1773762643050,-702.0,0.00018364,2]
[408498613,1773762643059,-500.0,0.00018387,2]
[408498614,1773762643068,-1000.0,0.00018421,2]
[408498615,1773762643078,-1000.0,0.00018421,2]
[408498616,1773762643087,-1000.0,0.00018421,2]
[408498617,1773762643097,-1000.0,0.00018421,2]
[408498618,1773762643107,-17489.0,0.00018422,2]
[408498619,1773762643118,-1175.0,0.00018431,2]
[408498620,1773762643130,-150.0,0.00018433,2]
[408498621,1773762643140,-150.0,0.00018433,2]
[408498622,1773762643149,-266.0,0.00018433,2]
[408498623,1773762643159,-1252.0,0.00018456,2]
[408498624,1773762643169,-736.72077786,0.000185,2]
[408498625,1773762643178,-753.699285,0.00018526,7]
[408498626,1773762643188,-200.0,0.00018545,2]
[408498627,1773762643198,-1175.0,0.00018547,2]
[408498628,1773762643208,-600.0,0.00018561,2]
[408498629,1773762643218,-1175.0,0.00018592,2]
[408498630,1773762643227,-800.0,0.00018595,2]
[408498631,1773762643236,-6453.0,0.00018605,2]
[408498632,1773762643246,-3401.833155,0.00018609,7]
[408498633,1773762643256,-1493.213978,0.00018609,7]
[408498634,1773762643267,-500.0,0.00018643,2]
[408498635,1773762643277,-1000.0,0.00018646,2]
[408498636,1773762643286,-4547.82,0.00018704,2]
[408498637,1773762643296,-339.0,0.00018714,2]
[408498638,1773762643306,-150.0,0.00018715,14]
[408498639,1773762643316,-150.0,0.00018715,14]
[408498640,1773762643326,-150.0,0.00018715,14]
[408498641,1773762643336,-150.0,0.00018715,14]
[408498642,1773762643346,-185.0,0.00018715,14]
[408498643,1773762643356,-200.0,0.00018731,2]
[408498644,1773762643365,-453.73,0.00018747,2]
[408498645,1773762643374,-800.0,0.00018795,2]
[408498647,1773762643384,-326.87889397,0.00018816,2]
[408498648,1773762643393,-736.72077786,0.0001885,2]
[408498649,1773762643402,-453.73,0.00018873,2]
[408498650,1773762643412,-4765.3743074,0.00018894,2]
[408498651,1773762643421,-1578.73589156,0.00018894,2]
[408498652,1773762643431,-285.70385452,0.00018894,2]
[408498653,1773762643440,-320.96072027,0.00018894,2]
[408498654,1773762643449,-27477.52440994,0.00018894,2]
[408498655,1773762643459,-151.0,0.000189,2]
[408498656,1773762643468,-1600.0,0.00018904,2]
[408498657,1773762643478,-150.0,0.00018922,14]
[408498659,1773762643487,-264.0,0.00018922,14]
[408498660,1773762643497,-1500.0,0.00018968,2]
[408498661,1773762643508,-1500.0,0.00018968,2]
[408498662,1773762643517,-253.74817323,0.00018968,2]
[408498663,1773762643527,-224.56,0.00018978,2]
[408498665,1773762643537,-453.73,0.00018999,2]
[408498666,1773762643546,-372.52834665,0.00019,15]
[408498667,1773762643560,-5115.78468326,0.00019,2]
[408498669,1773762643570,-4741.00799026,0.00019,2]
[408498671,1773762643579,-350.0,0.00019,2]
[408498673,1773762643588,-197.55,0.00019028,2]
[408498675,1773762643598,-1000.0,0.00019052,2]
[408498677,1773762643607,-224.56,0.00019055,2]
[408498678,1773762643616,-453.73,0.00019125,2]
[408498679,1773762643626,-224.56,0.00019133,2]
[408498680,1773762643635,-300.0,0.00019177,2]
[408498681,1773762643644,-165.81,0.00019178,2]
[408498682,1773762643654,-159.68380378,0.00019178,2]
[408498683,1773762643663,-3000.0,0.00019178,2]
[408498685,1773762643672,-1000.0,0.00019178,7]
[408498687,1773762643681,-151.0,0.00019178,2]
[408498689,1773762643691,-151.0,0.00019178,2]
[408498691,1773762643700,-151.0,0.00019178,2]
[408498693,1773762643710,-151.0,0.00019178,2]
[408498694,1773762643719,-151.0,0.00019178,2]
[408498695,1773762643729,-151.0,0.00019178,2]
[408498696,1773762643740,-151.0,0.00019178,2]
[408498697,1773762643749,-151.0,0.00019178,2]
[408498698,1773762643758,-151.0,0.00019178,2]
[408498699,1773762643768,-151.0,0.00019178,2]
[408498700,1773762643777,-151.0,0.00019178,2]
[408498701,1773762643786,-151.0,0.00019178,2]
[408498702,1773762643796,-151.0,0.00019178,2]
[408498703,1773762643807,-151.0,0.00019178,2]
[408498704,1773762643817,-151.0,0.00019178,2]
[408498705,1773762643827,-240.82079334,0.00019178,2]
[408498706,1773762643837,-151.0,0.00019178,2]
[408498707,1773762643846,-151.0,0.00019178,2]
[408498708,1773762643856,-151.0,0.00019178,2]
[408498709,1773762643866,-151.0,0.00019178,2]
[408498710,1773762643876,-151.0,0.00019178,2]
[408498711,1773762643886,-151.0,0.00019178,2]
[408498712,1773762643895,-151.0,0.00019178,2]
[408498713,1773762643906,-151.0,0.00019178,2]
[408498714,1773762643916,-151.0,0.00019178,2]
[408498715,1773762643926,-151.0,0.00019178,2]
[408498716,1773762643938,-151.0,0.00019178,2]
[408498717,1773762643947,-151.0,0.00019178,2]
[408498719,1773762643956,-151.0,0.00019178,2]
[408498721,1773762643965,-161.410058,0.00019178,2]
[408498723,1773762643974,-151.0,0.00019178,2]
[408498724,1773762643983,-151.0,0.00019178,2]
[408498726,1773762643993,-151.0,0.00019178,2]
[408498727,1773762644002,-157.402337,0.00019178,2]
[408498728,1773762644012,-5561.317482,0.00019178,2]
[408498729,1773762644022,-5561.317482,0.00019178,2]
[408498730,1773762644032,-5561.317482,0.00019178,2]
[408498731,1773762644041,-5561.317482,0.00019178,2]
[408498732,1773762644050,-5561.317482,0.00019178,2]
[408498733,1773762644060,-5561.317482,0.00019178,2]
[408498734,1773762644069,-5561.317482,0.00019178,2]
[408498735,1773762644078,-5561.317482,0.00019178,2]
[408498736,1773762644087,-5561.317482,0.00019178,2]
[408498737,1773762644097,-5561.317482,0.00019178,2]
[408498738,1773762644106,-5561.317482,0.00019178,2]
[408498739,1773762644117,-5561.317482,0.00019178,2]
[408498740,1773762644128,-5561.317482,0.00019178,2]
[408498741,1773762644138,-5561.317482,0.00019178,2]
[408498742,1773762644147,-5561.317482,0.00019178,2]
[408498743,1773762644157,-5561.317482,0.00019178,2]
[408498744,1773762644168,-5561.317482,0.00019178,2]
[408498745,1773762644178,-5561.317482,0.00019178,2]
[408498746,1773762644188,-5561.317482,0.00019178,2]
[408498747,1773762644197,-5561.317475,0.00019178,2]
[408498748,1773762644206,-1072.905708,0.00019178,2]
[408498749,1773762644215,-1072.905708,0.00019178,2]
[408498750,1773762644224,-1072.905708,0.00019178,2]
[408498751,1773762644233,-1072.905708,0.00019178,2]
[408498752,1773762644243,-1072.905708,0.00019178,2]
[408498753,1773762644253,-1072.905708,0.00019178,2]
[408498754,1773762644262,-1072.905708,0.00019178,2]
[408498755,1773762644271,-1072.905708,0.00019178,2]
[408498756,1773762644281,-1072.905708,0.00019178,2]
[408498757,1773762644290,-1072.905708,0.00019178,2]
[408498758,1773762644299,-1072.905708,0.00019178,2]
[408498759,1773762644308,-1072.905708,0.00019178,2]
[408498760,1773762644318,-1072.905708,0.00019178,2]
[408498761,1773762644327,-1072.905708,0.00019178,2]
[408498762,1773762644336,-1072.905708,0.00019178,2]
[408498763,1773762644345,-1072.905708,0.00019178,2]
[408498764,1773762644354,-1072.905708,0.00019178,2]
[408498765,1773762644363,-1072.905708,0.00019178,2]
[408498766,1773762644372,-1072.905708,0.00019178,2]
[408498767,1773762644381,-1072.90571,0.00019178,2]
[408498768,1773762644391,-174.220315,0.00019178,2]
[408498769,1773762644400,-174.220315,0.00019178,2]
[408498770,1773762644409,-174.220315,0.00019178,2]
[408498771,1773762644418,-174.220315,0.00019178,2]
[408498772,1773762644427,-174.220315,0.00019178,2]
[408498773,1773762644436,-174.220315,0.00019178,2]
[408498774,1773762644445,-174.220315,0.00019178,2]
[408498775,1773762644454,-174.220315,0.00019178,2]
[408498776,1773762644463,-174.220315,0.00019178,2]
[408498777,1773762644473,-174.220315,0.00019178,2]
[408498778,1773762644482,-174.220315,0.00019178,2]
[408498779,1773762644491,-174.220315,0.00019178,2]
[408498780,1773762644500,-174.220315,0.00019178,2]
[408498781,1773762644509,-174.220315,0.00019178,2]
[408498782,1773762644519,-174.220315,0.00019178,2]
[408498783,1773762644528,-174.220315,0.00019178,2]
[408498784,1773762644538,-174.220315,0.00019178,2]
[408498785,1773762644547,-174.220315,0.00019178,2]
[408498786,1773762644556,-174.220315,0.00019178,2]
[408498787,1773762644566,-174.220309,0.00019178,2]
[408498788,1773762644575,-151.0,0.00019178,2]
[408498789,1773762644584,-151.0,0.00019178,2]
[408498790,1773762644593,-151.0,0.00019178,2]
[408498791,1773762644602,-151.0,0.00019178,2]
[408498792,1773762644611,-151.0,0.00019178,2]
[408498793,1773762644621,-159.572741,0.00019178,2]
[408498794,1773762644631,-150.0,0.00019178,2]
[408498795,1773762644640,-150.0,0.00019178,2]
[408498796,1773762644649,-2000.0,0.000192,2]
[408498797,1773762644658,-736.72077786,0.000192,2]
[408498798,1773762644667,-150.0,0.00019209,2]
[408498799,1773762644676,-150.0,0.00019209,2]
[408498800,1773762644685,-268.0,0.00019209,2]
[408498801,1773762644694,-200.0,0.0001921,14]
[408498802,1773762644710,-200.0,0.0001921,14]
[408498803,1773762644723,-200.0,0.0001921,14]
[408498804,1773762644734,-200.0,0.0001921,14]
[408498805,1773762644743,-162.0,0.0001921,14]
[408498806,1773762644753,-500.0,0.00019244,2]
[408498807,1773762644763,-500.0,0.00019245,2]
[408498808,1773762644772,-453.73,0.00019251,2]
[408498809,1773762644783,-2222.289997,0.00019331,7]
[408498810,1773762644792,-15645.0,0.00019356,2]
[408498811,1773762644803,-453.73,0.00019378,2]
[408498812,1773762644813,-350.0,0.00019422,2]
[408498813,1773762644824,-600.0,0.00019431,2]
[408498814,1773762644834,-1361.668701,0.00019445,7]
[408498815,1773762644845,-600.0,0.00019479,2]
[408498816,1773762644855,-2000.0,0.000195,7]
[408498817,1773762644866,-203.0,0.00019503,14]
[408498818,1773762644877,-453.7933437,0.00019504,2]
[408498819,1773762644887,-997.22925258,0.00019516,2]
[408498820,1773762644896,-2000.0,0.00019516,2]
[408498821,1773762644905,-3248.44,0.00019521,2]
[408498822,1773762644914,-1486.98,0.00019521,2]
[408498823,1773762644924,-736.72077786,0.0001955,2]
[408498824,1773762644933,-600.0,0.0001959,2]
[408498825,1773762644943,-499.99,0.000196,2]
[408498826,1773762644954,-281.63,0.000196,2]
[408498827,1773762644964,-2000.0,0.000196,7]
[408498828,1773762644975,-500.0,0.00019607,2]
[408498829,1773762644985,-903.7898,0.00019663,7]
[408498830,1773762644995,-1291.9154518,0.000197,2]
[408498831,1773762645005,-2000.0,0.000197,7]
[408498832,1773762645015,-150.0,0.00019726,2]
[408498833,1773762645025,-300.69699552,0.00019726,2]
[408498834,1773762645036,-500.0,0.00019757,2]
[408498835,1773762645046,-197.55,0.00019789,2]
[408498836,1773762645202,-155.0,0.00019799,2]
[408498837,1773762645212,-300.0,0.00019799,2]
[408498838,1773762645221,-111864.67973268,0.000198,2]
[408498839,1773762645231,-500.0,0.000198,2]
[408498840,1773762645240,-500.0,0.000198,2]
[408498841,1773762645249,-500.0,0.000198,2]
[408498842,1773762645259,-500.0,0.000198,2]
[408498843,1773762645267,-500.0,0.000198,2]
[408498844,1773762645277,-500.0,0.000198,2]
[408498845,1773762645286,-500.0,0.000198,2]
[408498846,1773762645295,-500.0,0.000198,2]
[408498847,1773762645304,-500.0,0.000198,2]
[408498848,1773762645313,-500.0,0.000198,2]
[408498849,1773762645323,-500.0,0.000198,2]
[408498850,1773762645332,-500.0,0.000198,2]
[408498851,1773762645341,-500.0,0.000198,2]
[408498852,1773762645350,-500.0,0.000198,2]
[408498853,1773762645359,-500.0,0.000198,2]
[408498854,1773762645368,-500.0,0.000198,2]
[408498855,1773762645377,-500.0,0.000198,2]
[408498856,1773762645386,-500.0,0.000198,2]
[408498857,1773762645394,-150.5,0.000198,2]
[408498858,1773762645403,-400.0,0.000198,14]
[408498859,1773762645412,-400.0,0.000198,14]
[408498860,1773762645421,-400.0,0.000198,14]
[408498861,1773762645431,-400.0,0.000198,14]
[408498862,1773762645440,-400.0,0.000198,14]
[408498863,1773762645449,-238.0,0.000198,14]
[408498864,1773762645458,-2580.0,0.000198,7]
[408498865,1773762645467,-9413.0577401,0.00019806,2]
[408498866,1773762645478,-3910.9419065,0.00019806,2]
[408498867,1773762645487,-3099.5358064,0.00019806,2]
[408498868,1773762645496,-500.0,0.00019814,2]
[408498869,1773762645505,-326.87889397,0.00019831,2]
[408498870,1773762645515,-150.0,0.00019834,2]
[408498871,1773762645524,-250.0,0.0001989,2]
[408498872,1773762645534,-5800.0,0.00019892,2]
[408498873,1773762645543,-300.0,0.00019899,2]